[Event "15. ročník Dobrovický rapid Tereos TTD a.s."]
[Site "Dobrovice, Czech Republic"]
[Date "2020.02.29"]
[Round "6.8"]
[White "Sulc Jakub"]
[Black "Groh Jiri"]
[Result "1-0"]
[TimeControl "15m + 3s / tah"]
[WhiteElo "1754"]
[BlackElo "2031"]

1. e4 {[%clk 00:15:03]} {[%emt 00:00:03]} c5 {[%clk 00:15:05]} {[%emt
00:00:01]} 2. Nc3 {[%clk 00:15:01]} {[%emt 00:00:04]} Nc6 {[%clk 00:15:06]}
{[%emt 00:00:01]} 3. g3 {[%clk 00:15:03]} {[%emt 00:00:02]} g6 {[%clk
00:15:07]} {[%emt 00:00:02]} 4. Bg2 {[%clk 00:15:04]} {[%emt 00:00:02]} Bg7
{[%clk 00:15:09]} 5. Nge2 {[%clk 00:15:06]} {[%emt 00:00:02]} e6 {[%clk
00:15:05]} {[%emt 00:00:07]} 6. O-O {[%clk 00:15:06]} {[%emt 00:00:03]} Nge7
{[%clk 00:15:06]} {[%emt 00:00:02]} 7. d3 {[%clk 00:15:05]} {[%emt 00:00:04]}
O-O {[%clk 00:15:06]} {[%emt 00:00:03]} 8. f4 {[%clk 00:15:07]} {[%emt
00:00:02]} f5 {[%clk 00:15:02]} {[%emt 00:00:07]} 9. e5 {[%clk 00:14:58]}
{[%emt 00:00:12]} d6 {[%clk 00:14:59]} {[%emt 00:00:06]} 10. exd6 {[%clk
00:14:59]} {[%emt 00:00:02]} Qxd6 {[%clk 00:14:58]} {[%emt 00:00:03]} 11. Be3
{[%clk 00:14:48]} {[%emt 00:00:14]} b6 {[%clk 00:14:57]} {[%emt 00:00:03]} 12.
d4 {[%clk 00:13:54]} {[%emt 00:00:58]} cxd4 {[%clk 00:14:50]} {[%emt 00:00:10]}
13. Nxd4 {[%clk 00:13:34]} {[%emt 00:00:23]} Bxd4 {[%clk 00:13:00]} {[%emt
00:01:53]} 14. Bxd4 {[%clk 00:13:26]} {[%emt 00:00:11]} Ba6 {[%clk 00:12:06]}
{[%emt 00:00:57]} 15. Re1 {[%clk 00:13:17]} {[%emt 00:00:12]} Qxd4+ {[%clk
00:12:01]} {[%emt 00:00:09]} 16. Qxd4 {[%clk 00:13:12]} {[%emt 00:00:08]} Nxd4
{[%clk 00:12:02]} {[%emt 00:00:02]} 17. Bxa8 {[%clk 00:13:13]} {[%emt
00:00:02]} Rxa8 {[%clk 00:11:47]} {[%emt 00:00:18]} 18. Red1 {[%clk 00:12:54]}
{[%emt 00:00:23]} Nec6 {[%clk 00:11:01]} {[%emt 00:00:48]} 19. Rac1 {[%clk
00:12:40]} {[%emt 00:00:16]} Be2 {[%clk 00:10:36]} {[%emt 00:00:30]} 20. Re1
{[%clk 00:12:35]} {[%emt 00:00:08]} Nf3+ {[%clk 00:10:36]} {[%emt 00:00:02]} 21.
Kf2 {[%clk 00:12:36]} {[%emt 00:00:02]} Nxe1 {[%clk 00:10:37]} {[%emt
00:00:02]} 22. Nxe2 {[%clk 00:12:11]} {[%emt 00:00:29]} e5 {[%clk 00:09:28]}
{[%emt 00:01:11]} 23. fxe5 {[%clk 00:11:59]} {[%emt 00:00:14]} Re8 {[%clk
00:09:30]} 24. Rxe1 {[%clk 00:11:18]} {[%emt 00:00:45]} Rxe5 {[%clk 00:09:30]}
{[%emt 00:00:03]} 25. c3 {[%clk 00:10:26]} {[%emt 00:00:55]} Ra5 {[%clk
00:09:18]} {[%emt 00:00:15]} 26. Nc1 {[%clk 00:09:31]} {[%emt 00:00:58]} Ne5
{[%clk 00:09:02]} {[%emt 00:00:18]} 27. h3 {[%clk 00:08:03]} {[%emt 00:01:31]}
Kf7 {[%clk 00:08:58]} {[%emt 00:00:06]} 28. b3 {[%clk 00:07:42]} {[%emt
00:00:24]} Rd5 {[%clk 00:08:43]} {[%emt 00:00:19]} 29. c4 {[%clk 00:06:14]}
{[%emt 00:01:32]} Rc5 {[%clk 00:08:41]} {[%emt 00:00:04]} 30. Ke3 {[%clk
00:05:17]} {[%emt 00:01:01]} Kf6 {[%clk 00:08:27]} {[%emt 00:00:16]} 31. Nd3
{[%clk 00:04:35]} {[%emt 00:00:45]} Nxd3 {[%clk 00:07:07]} {[%emt 00:01:23]} 32.
Kxd3 {[%clk 00:04:32]} {[%emt 00:00:05]} g5 {[%clk 00:07:06]} {[%emt 00:00:05]}
33. Re8 {[%clk 00:03:03]} {[%emt 00:01:32]} Rc7 {[%clk 00:06:55]} {[%emt
00:00:14]} 34. Ke3 {[%clk 00:02:10]} {[%emt 00:00:56]} Rd7 {[%clk 00:06:50]}
{[%emt 00:00:07]} 35. Ke2 {[%clk 00:00:31]} {[%emt 00:01:42]} h6 {[%clk
00:06:06]} {[%emt 00:00:47]} 36. Rh8 {[%clk 00:00:21]} {[%emt 00:00:13]} Kg7
{[%clk 00:06:03]} {[%emt 00:00:05]} 37. Re8 {[%clk 00:00:22]} {[%emt 00:00:02]}
h5 {[%clk 00:05:50]} {[%emt 00:00:17]} 38. Re6 {[%clk 00:00:15]} {[%emt
00:00:10]} Rf7 {[%clk 00:05:37]} {[%emt 00:00:16]} 39. Kf3 {[%clk 00:00:15]}
{[%emt 00:00:02]} g4+ {[%clk 00:05:36]} {[%emt 00:00:05]} 40. Kg2 {[%clk
00:00:08]} {[%emt 00:00:10]} Rd7 {[%clk 00:05:23]} {[%emt 00:00:16]} 41. Re2
{[%clk 00:00:09]} {[%emt 00:00:02]} Kf6 {[%clk 00:05:19]} {[%emt 00:00:06]} 42.
hxg4 {[%clk 00:00:10]} {[%emt 00:00:02]} hxg4 {[%clk 00:05:20]} {[%emt
00:00:02]} 43. Kf2 {[%clk 00:00:11]} {[%emt 00:00:02]} Rd3 {[%clk 00:05:01]}
{[%emt 00:00:23]} 44. Kg2 {[%clk 00:00:12]} {[%emt 00:00:02]} Rd1 {[%clk
00:04:37]} {[%emt 00:00:26]} 45. Kf2 {[%clk 00:00:10]} {[%emt 00:00:06]} Kg5
{[%clk 00:04:31]} {[%emt 00:00:09]} 46. Kg2 {[%clk 00:00:08]} {[%emt 00:00:04]}
Rd7 {[%clk 00:04:20]} {[%emt 00:00:14]} 47. Rf2 {[%clk 00:00:09]} {[%emt
00:00:02]} Kf6 {[%clk 00:04:15]} {[%emt 00:00:08]} 48. Re2 {[%clk 00:00:11]}
{[%emt 00:00:02]} Rc7 {[%clk 00:03:52]} {[%emt 00:00:25]} 49. Kf2 {[%clk
00:00:09]} {[%emt 00:00:06]} Rh7 {[%clk 00:03:25]} {[%emt 00:00:30]} 50. Kg2
{[%clk 00:00:11]} {[%emt 00:00:01]} Rc7 {[%clk 00:03:05]} {[%emt 00:00:22]} 51.
Kf2 {[%clk 00:00:12]} {[%emt 00:00:02]} Rc5 {[%clk 00:02:55]} {[%emt 00:00:12]}
52. Rd2 {[%clk 00:00:09]} {[%emt 00:00:07]} Ke5 {[%clk 00:02:33]} {[%emt
00:00:25]} 53. Ke3 {[%clk 00:00:11]} Ke6 {[%clk 00:02:25]} {[%emt 00:00:11]} 54.
Kf2 {[%clk 00:00:06]} {[%emt 00:00:09]} Ra5 {[%clk 00:02:20]} {[%emt 00:00:07]}
55. Ke3 {[%clk 00:00:07]} {[%emt 00:00:02]} Re5+ {[%clk 00:02:20]} {[%emt
00:00:03]} 56. Kf2 {[%clk 00:00:08]} {[%emt 00:00:02]} Kf6 {[%clk 00:02:12]}
{[%emt 00:00:11]} 57. Rd7 {[%clk 00:00:09]} {[%emt 00:00:02]} Ra5 {[%clk
00:01:54]} {[%emt 00:00:21]} 58. a4 {[%clk 00:00:11]} {[%emt 00:00:02]} Ke6
{[%clk 00:01:51]} {[%emt 00:00:05]} 59. Rb7 {[%clk 00:00:12]} {[%emt 00:00:02]}
Kd6 {[%clk 00:01:48]} {[%emt 00:00:06]} 60. Rf7 {[%clk 00:00:13]} {[%emt
00:00:02]} a6 {[%clk 00:01:24]} {[%emt 00:00:27]} 61. Ke3 {[%clk 00:00:14]}
{[%emt 00:00:02]} Re5+ {[%clk 00:01:24]} {[%emt 00:00:03]} 62. Kd4 {[%clk
00:00:14]} {[%emt 00:00:03]} Re4+ {[%clk 00:01:24]} {[%emt 00:00:03]} 63. Kd3
{[%clk 00:00:15]} {[%emt 00:00:01]} Re5 {[%clk 00:01:16]} {[%emt 00:00:10]} 64.
Rf6+ {[%clk 00:00:16]} {[%emt 00:00:02]} Kc5 {[%clk 00:01:17]} {[%emt
00:00:03]} 65. Rg6 {[%clk 00:00:15]} {[%emt 00:00:05]} a5 {[%clk 00:01:10]}
{[%emt 00:00:09]} 66. Rf6 {[%clk 00:00:16]} {[%emt 00:00:02]} f4 {[%clk
00:00:54]} {[%emt 00:00:19]} 67. Rxf4 {[%clk 00:00:17]} {[%emt 00:00:02]} Rg5
{[%clk 00:00:55]} {[%emt 00:00:02]} 68. Rf6 {[%clk 00:00:19]} Rh5 {[%clk
00:00:54]} {[%emt 00:00:04]} 69. Rg6 {[%clk 00:00:21]} {[%emt 00:00:01]} Rh1
{[%clk 00:00:54]} {[%emt 00:00:03]} 70. Kc2 {[%clk 00:00:19]} {[%emt 00:00:04]}
Rh2+ {[%clk 00:00:53]} {[%emt 00:00:05]} 71. Kc3 {[%clk 00:00:21]} {[%emt
00:00:01]} Rh1 {[%clk 00:00:54]} {[%emt 00:00:02]} 72. Rxg4 {[%clk 00:00:23]}
Rc1+ {[%clk 00:00:56]} {[%emt 00:00:02]} 73. Kb2 {[%clk 00:00:25]} {[%emt
00:00:01]} Rg1 {[%clk 00:00:57]} {[%emt 00:00:02]} 74. Rg5+ {[%clk 00:00:27]}
{[%emt 00:00:01]} Kc6 {[%clk 00:00:58]} {[%emt 00:00:01]} 75. g4 {[%clk
00:00:28]} {[%emt 00:00:02]} Rg3 {[%clk 00:00:58]} {[%emt 00:00:03]} 76. Rg6+
{[%clk 00:00:28]} {[%emt 00:00:03]} Kc7 {[%clk 00:01:00]} {[%emt 00:00:01]} 77.
g5 {[%clk 00:00:30]} Kd7 {[%clk 00:00:57]} {[%emt 00:00:05]} 78. Rxb6 {[%clk
00:00:31]} {[%emt 00:00:03]} Rxg5 {[%clk 00:01:00]} 79. Rb5 {[%clk 00:00:33]}
{[%emt 00:00:01]} Rg2+ {[%clk 00:01:02]} 80. Ka3 {[%clk 00:00:35]} {[%emt
00:00:01]} Kc6 {[%clk 00:01:02]} {[%emt 00:00:03]} 81. Rxa5 {[%clk 00:00:36]}
Rg1 {[%clk 00:01:04]} 82. Rd5 {[%clk 00:00:38]} {[%emt 00:00:01]} Rg2 {[%clk
00:01:04]} {[%emt 00:00:03]} 83. Kb4 {[%clk 00:00:40]} {[%emt 00:00:01]} Rg8
{[%clk 00:01:06]} {[%emt 00:00:01]} 84. Rh5 {[%clk 00:00:40]} {[%emt 00:00:02]}
Rb8+ {[%clk 00:01:08]} {[%emt 00:00:01]} 85. Kc3 {[%clk 00:00:43]} Rg8 {[%clk
00:01:10]} {[%emt 00:00:02]} 86. Rh6+ {[%clk 00:00:44]} {[%emt 00:00:02]} Kc7
{[%clk 00:01:11]} {[%emt 00:00:02]} 87. a5 {[%clk 00:00:45]} {[%emt 00:00:02]}
Rg3+ {[%clk 00:01:11]} {[%emt 00:00:03]} 88. Kb4 {[%clk 00:00:47]} Rf3 {[%clk
00:01:11]} {[%emt 00:00:03]} 89. Ka4 {[%clk 00:00:48]} {[%emt 00:00:02]} Rf1
{[%clk 00:01:13]} {[%emt 00:00:01]} 90. b4 {[%clk 00:00:49]} {[%emt 00:00:02]}
Rc1 {[%clk 00:01:12]} {[%emt 00:00:03]} 91. c5 {[%clk 00:00:51]} {[%emt
00:00:02]} Rc3 {[%clk 00:01:13]} {[%emt 00:00:02]} 92. Kb5 {[%clk 00:00:53]}
{[%emt 00:00:01]} Rg3 {[%clk 00:01:15]} {[%emt 00:00:02]} 93. Rh7+ {[%clk
00:00:54]} {[%emt 00:00:01]} Kc8 {[%clk 00:01:16]} {[%emt 00:00:02]} 94. Kb6
{[%clk 00:00:55]} {[%emt 00:00:02]} Rg4 {[%clk 00:01:14]} {[%emt 00:00:05]} 95.
b5 {[%clk 00:00:56]} {[%emt 00:00:02]} Rg6+ {[%clk 00:01:10]} {[%emt 00:00:07]}
96. c6 {[%clk 00:00:57]} {[%emt 00:00:02]} Rg8 {[%clk 00:01:10]} {[%emt
00:00:04]} 97. a6 {[%clk 00:00:58]} {[%emt 00:00:03]} Kb8 {[%clk 00:01:10]}
{[%emt 00:00:03]} 98. Rd7 {[%clk 00:00:56]} {[%emt 00:00:05]} Ka8 {[%clk
00:01:09]} {[%emt 00:00:04]} 99. c7 {[%clk 00:00:30]} {[%emt 00:00:29]} Rg6+
{[%clk 00:00:52]} {[%emt 00:00:20]} 100. Ka5 {[%clk 00:00:31]} {[%emt
00:00:02]} Rxa6+ {[%clk 00:00:46]} {[%emt 00:00:10]} 101. bxa6 {[%clk
00:00:33]} {[%emt 00:00:01]} Ka7 {[%clk 00:00:48]} 102. c8=Q# {[%clk 00:00:33]}
{[%emt 00:00:02]} 1-0

[Event "15. ročník Dobrovický rapid Tereos TTD a.s."]
[Site "Dobrovice, Czech Republic"]
[Date "2020.02.29"]
[Round "6.9"]
[White "Postupa Pavel ml."]
[Black "Danek Pavel"]
[Result "1-0"]
[TimeControl "15m + 3s / tah"]
[WhiteElo "2164"]
[BlackElo "1844"]

1. e4 {[%clk 00:15:04]} {[%emt 00:00:02]} e6 {[%clk 00:15:06]} {[%emt
00:00:01]} 2. d4 {[%clk 00:15:05]} {[%emt 00:00:01]} d5 {[%clk 00:15:06]}
{[%emt 00:00:02]} 3. Nd2 {[%clk 00:15:07]} {[%emt 00:00:01]} dxe4 {[%clk
00:15:08]} {[%emt 00:00:02]} 4. Nxe4 {[%clk 00:15:09]} Nd7 {[%clk 00:15:09]}
{[%emt 00:00:01]} 5. Nf3 {[%clk 00:15:06]} {[%emt 00:00:06]} Be7 {[%clk
00:15:10]} {[%emt 00:00:02]} 6. Bd3 {[%clk 00:15:01]} {[%emt 00:00:08]} Ngf6
{[%clk 00:15:12]} {[%emt 00:00:01]} 7. O-O {[%clk 00:14:57]} {[%emt 00:00:07]}
O-O {[%clk 00:15:08]} {[%emt 00:00:06]} 8. Qe2 {[%clk 00:14:51]} {[%emt
00:00:08]} Nxe4 {[%clk 00:14:37]} {[%emt 00:00:35]} 9. Qxe4 {[%clk 00:14:51]}
{[%emt 00:00:02]} Nf6 {[%clk 00:14:27]} {[%emt 00:00:14]} 10. Qe2 {[%clk
00:14:33]} {[%emt 00:00:21]} b6 {[%clk 00:14:15]} {[%emt 00:00:15]} 11. Bf4
{[%clk 00:14:26]} {[%emt 00:00:10]} Bb7 {[%clk 00:13:59]} {[%emt 00:00:19]} 12.
Rfd1 {[%clk 00:14:19]} {[%emt 00:00:10]} Nh5 {[%clk 00:12:06]} {[%emt
00:01:57]} 13. Bd2 {[%clk 00:13:18]} {[%emt 00:01:03]} Qd6 {[%clk 00:09:03]}
{[%emt 00:03:06]} 14. Be4 {[%clk 00:12:38]} {[%emt 00:00:44]} Bxe4 {[%clk
00:08:33]} {[%emt 00:00:33]} 15. Qxe4 {[%clk 00:12:39]} {[%emt 00:00:01]} Qd5
{[%clk 00:07:59]} {[%emt 00:00:37]} 16. Qe2 {[%clk 00:12:17]} {[%emt 00:00:25]}
Qf5 {[%clk 00:05:38]} {[%emt 00:02:23]} 17. Ne5 {[%clk 00:09:54]} {[%emt
00:02:28]} Nf4 {[%clk 00:04:18]} {[%emt 00:01:22]} 18. Qf3 {[%clk 00:09:25]}
{[%emt 00:00:32]} Nd5 {[%clk 00:04:04]} {[%emt 00:00:17]} 19. Qxf5 {[%clk
00:09:23]} {[%emt 00:00:06]} exf5 {[%clk 00:04:05]} {[%emt 00:00:01]} 20. c4
{[%clk 00:08:53]} {[%emt 00:00:33]} Nf6 {[%clk 00:03:40]} {[%emt 00:00:28]} 21.
Bg5 {[%clk 00:08:20]} {[%emt 00:00:36]} Nd5 {[%clk 00:02:58]} {[%emt 00:00:45]}
22. Bd2 {[%clk 00:07:45]} {[%emt 00:00:39]} Nf6 {[%clk 00:02:52]} {[%emt
00:00:09]} 23. Bc3 {[%clk 00:06:55]} {[%emt 00:00:53]} Ne4 {[%clk 00:02:43]}
{[%emt 00:00:12]} 24. Nc6 {[%clk 00:06:31]} {[%emt 00:00:26]} Bd6 {[%clk
00:02:39]} {[%emt 00:00:07]} 25. Be1 {[%clk 00:06:20]} {[%emt 00:00:15]} Bf4
{[%clk 00:02:06]} {[%emt 00:00:37]} 26. Ne7+ {[%emt 00:00:20]} Kh8 {[%emt
00:00:02]} 27. Nxf5 {[%clk 00:06:03]} {[%emt 00:00:01]} Rfe8 {[%clk 00:01:59]}
{[%emt 00:00:13]} 28. Ng3 {[%clk 00:05:59]} {[%emt 00:00:06]} Bxg3 {[%clk
00:01:50]} {[%emt 00:00:12]} 29. hxg3 {[%clk 00:06:00]} {[%emt 00:00:02]} Nd6
{[%clk 00:01:52]} {[%emt 00:00:01]} 30. c5 {[%clk 00:05:50]} {[%emt 00:00:12]}
Nc4 {[%clk 00:01:50]} {[%emt 00:00:05]} 31. b3 {[%clk 00:05:42]} {[%emt
00:00:11]} Na3 {[%clk 00:01:43]} {[%emt 00:00:09]} 32. cxb6 {[%clk 00:05:27]}
{[%emt 00:00:19]} axb6 {[%clk 00:01:07]} {[%emt 00:00:40]} 33. Rac1 {[%clk
00:05:27]} {[%emt 00:00:02]} Re2 {[%clk 00:00:55]} {[%emt 00:00:15]} 34. Rxc7
{[%clk 00:04:53]} {[%emt 00:00:37]} Nc2 {[%clk 00:00:44]} {[%emt 00:00:14]} 35.
Kf1 {[%clk 00:03:42]} {[%emt 00:01:14]} Rae8 {[%clk 00:00:32]} {[%emt
00:00:15]} 36. Bc3 {[%clk 00:03:39]} {[%emt 00:00:04]} f6 {[%clk 00:00:20]}
{[%emt 00:00:17]} 37. d5 {[%clk 00:03:40]} {[%emt 00:00:03]} h6 {[%clk
00:00:09]} {[%emt 00:00:14]} 38. d6 {[%clk 00:03:40]} {[%emt 00:00:02]} Na3
{[%emt 00:00:14]} 1-0

[Event "15. ročník Dobrovický rapid Tereos TTD a.s."]
[Site "Dobrovice, Czech Republic"]
[Date "2020.02.29"]
[Round "6.10"]
[White "Velicka Petr"]
[Black "Janacek Jaroslav"]
[Result "1-0"]
[TimeControl "15m + 3s / tah"]
[WhiteElo "2395"]
[BlackElo "1979"]

1. e4 {[%clk 00:15:03]} {[%emt 00:00:02]} d6 {[%clk 00:15:05]} {[%emt
00:00:02]} 2. d4 {[%clk 00:15:05]} {[%emt 00:00:01]} Nf6 {[%clk 00:15:06]} 3.
Nc3 {[%clk 00:15:07]} e5 {[%clk 00:15:08]} {[%emt 00:00:01]} 4. Nf3 {[%clk
00:15:08]} {[%emt 00:00:02]} Be7 {[%clk 00:15:07]} {[%emt 00:00:04]} 5. Bc4
{[%clk 00:15:09]} {[%emt 00:00:02]} Nbd7 {[%clk 00:14:57]} {[%emt 00:00:13]} 6.
O-O {[%clk 00:14:54]} {[%emt 00:00:18]} c6 {[%clk 00:14:57]} {[%emt 00:00:03]}
7. a4 {[%clk 00:14:55]} {[%emt 00:00:01]} Qc7 {[%clk 00:14:58]} {[%emt
00:00:02]} 8. Re1 {[%clk 00:14:49]} {[%emt 00:00:10]} h6 {[%clk 00:14:58]}
{[%emt 00:00:03]} 9. h3 {[%clk 00:14:42]} {[%emt 00:00:09]} a5 {[%clk
00:14:59]} {[%emt 00:00:02]} 10. Ba2 {[%clk 00:14:36]} {[%emt 00:00:10]} Nf8
{[%clk 00:14:56]} {[%emt 00:00:06]} 11. dxe5 {[%clk 00:14:26]} {[%emt
00:00:13]} dxe5 {[%clk 00:14:55]} {[%emt 00:00:04]} 12. Nh4 {[%clk 00:14:28]}
{[%emt 00:00:01]} g6 {[%clk 00:14:09]} {[%emt 00:00:49]} 13. Nf3 {[%clk
00:14:07]} {[%emt 00:00:23]} g5 {[%clk 00:13:58]} {[%emt 00:00:13]} 14. Nh2
{[%clk 00:14:06]} {[%emt 00:00:04]} Ng6 {[%clk 00:13:58]} {[%emt 00:00:03]} 15.
Ng4 {[%clk 00:13:59]} {[%emt 00:00:10]} Nxg4 {[%clk 00:13:55]} {[%emt
00:00:06]} 16. hxg4 {[%clk 00:14:00]} {[%emt 00:00:01]} Kf8 {[%clk 00:12:24]}
{[%emt 00:01:34]} 17. Qf3 {[%clk 00:13:57]} {[%emt 00:00:05]} f6 {[%clk
00:10:54]} {[%emt 00:01:33]} 18. Nd1 {[%clk 00:13:28]} {[%emt 00:00:33]} Nh4
{[%clk 00:10:15]} {[%emt 00:00:42]} 19. Qg3 {[%clk 00:13:24]} {[%emt 00:00:07]}
h5 {[%clk 00:10:02]} {[%emt 00:00:16]} 20. gxh5 {[%clk 00:13:06]} {[%emt
00:00:21]} Rxh5 {[%clk 00:09:55]} {[%emt 00:00:09]} 21. Qb3 {[%clk 00:13:01]}
{[%emt 00:00:08]} Bb4 {[%clk 00:02:57]} {[%emt 00:07:02]} 22. Qg8+ {[%clk
00:12:46]} {[%emt 00:00:17]} Ke7 {[%clk 00:02:59]} {[%emt 00:00:01]} 23. c3
{[%clk 00:12:14]} {[%emt 00:00:35]} Nxg2 {[%clk 00:01:58]} {[%emt 00:01:04]} 24.
Qf7+ {[%clk 00:11:26]} {[%emt 00:00:50]} Kd8 {[%clk 00:01:46]} {[%emt
00:00:11]} 25. Qxc7+ {[%clk 00:10:10]} {[%emt 00:01:23]} Kxc7 {[%clk 00:01:47]}
{[%emt 00:00:02]} 26. Kxg2 {[%clk 00:10:12]} {[%emt 00:00:01]} Bh3+ {[%clk
00:01:41]} {[%emt 00:00:09]} 27. Kf3 {[%clk 00:10:11]} {[%emt 00:00:04]} g4+
{[%clk 00:01:15]} {[%emt 00:00:29]} 28. Ke2 {[%clk 00:10:11]} {[%emt 00:00:03]}
Bc5 {[%clk 00:01:17]} {[%emt 00:00:01]} 29. Be3 {[%clk 00:10:08]} {[%emt
00:00:05]} Be7 {[%clk 00:01:10]} {[%emt 00:00:11]} 30. Rg1 {[%clk 00:09:41]}
{[%emt 00:00:29]} Rd8 {[%clk 00:01:10]} {[%emt 00:00:04]} 31. Be6 {[%clk
00:09:23]} {[%emt 00:00:20]} Rh4 {[%clk 00:01:05]} {[%emt 00:00:08]} 32. Bf5
{[%clk 00:09:19]} {[%emt 00:00:07]} Rg8 {[%clk 00:00:25]} {[%emt 00:00:44]} 33.
Rg3 {[%clk 00:09:04]} {[%emt 00:00:17]} b6 {[%clk 00:00:23]} {[%emt 00:00:05]}
34. Bd2 {[%clk 00:09:01]} {[%emt 00:00:06]} b5 {[%clk 00:00:13]} {[%emt
00:00:14]} 35. Ne3 {[%clk 00:08:57]} {[%emt 00:00:07]} Bc5 {[%clk 00:00:13]}
{[%emt 00:00:03]} 36. axb5 {[%clk 00:08:53]} {[%emt 00:00:07]} cxb5 {[%clk
00:00:14]} {[%emt 00:00:03]} 37. Rxa5 {[%emt 00:00:05]} Kb6 {[%emt 00:00:01]}
38. b4 {[%clk 00:08:48]} {[%emt 00:00:04]} Bf1+ {[%clk 00:00:09]} {[%emt
00:00:11]} 39. Nxf1 {[%clk 00:08:43]} {[%emt 00:00:08]} Rh1 {[%clk 00:00:00]}
{[%emt 00:00:09]} 1-0

[Event "15. ročník Dobrovický rapid Tereos TTD a.s."]
[Site "Dobrovice, Czech Republic"]
[Date "2020.02.29"]
[Round "6.11"]
[White "Toman Jan"]
[Black "Vranova Zdenka"]
[Result "0-1"]
[TimeControl "15m + 3s / tah"]
[WhiteElo "2088"]
[BlackElo "1970"]

1. Nf3 {[%clk 00:15:03]} {[%emt 00:00:03]} Nf6 {[%clk 00:15:04]} {[%emt
00:00:02]} 2. g3 {[%clk 00:15:05]} {[%emt 00:00:01]} g6 {[%clk 00:15:05]}
{[%emt 00:00:01]} 3. Bg2 {[%clk 00:15:08]} Bg7 {[%clk 00:15:07]} 4. O-O {[%clk
00:15:08]} {[%emt 00:00:03]} O-O {[%clk 00:15:08]} {[%emt 00:00:02]} 5. d3
{[%clk 00:15:10]} d6 {[%clk 00:15:09]} {[%emt 00:00:02]} 6. e4 {[%clk
00:15:12]} e5 {[%clk 00:15:11]} {[%emt 00:00:01]} 7. a4 {[%clk 00:15:14]}
{[%emt 00:00:01]} c6 {[%clk 00:15:13]} 8. a5 {[%clk 00:15:09]} {[%emt
00:00:08]} Nbd7 {[%clk 00:15:13]} {[%emt 00:00:02]} 9. h3 {[%clk 00:14:51]}
{[%emt 00:00:21]} Nc5 {[%clk 00:15:14]} {[%emt 00:00:02]} 10. Bg5 {[%clk
00:14:48]} {[%emt 00:00:06]} Qc7 {[%clk 00:15:07]} {[%emt 00:00:10]} 11. Qc1
{[%clk 00:14:05]} {[%emt 00:00:45]} Re8 {[%clk 00:15:06]} {[%emt 00:00:05]} 12.
Nc3 {[%clk 00:13:10]} {[%emt 00:00:58]} Ne6 {[%clk 00:15:07]} {[%emt 00:00:02]}
13. Be3 {[%clk 00:13:04]} {[%emt 00:00:08]} Bd7 {[%clk 00:14:27]} {[%emt
00:00:44]} 14. Bh6 {[%clk 00:12:17]} {[%emt 00:00:50]} Bh8 {[%clk 00:14:27]}
{[%emt 00:00:02]} 15. Nd1 {[%clk 00:11:53]} {[%emt 00:00:28]} d5 {[%clk
00:14:09]} {[%emt 00:00:21]} 16. Re1 {[%clk 00:11:08]} {[%emt 00:00:48]} dxe4
{[%clk 00:14:04]} {[%emt 00:00:09]} 17. dxe4 {[%clk 00:11:04]} {[%emt
00:00:07]} Nc5 {[%clk 00:13:27]} {[%emt 00:00:39]} 18. Nc3 {[%clk 00:10:53]}
{[%emt 00:00:14]} Na6 {[%clk 00:13:24]} {[%emt 00:00:06]} 19. Bf1 {[%clk
00:09:53]} {[%emt 00:01:03]} Nb4 {[%clk 00:13:05]} {[%emt 00:00:22]} 20. Kh2
{[%clk 00:08:51]} {[%emt 00:01:05]} a6 {[%clk 00:12:52]} {[%emt 00:00:16]} 21.
Nd2 {[%clk 00:08:09]} {[%emt 00:00:44]} c5 {[%clk 00:12:49]} {[%emt 00:00:06]}
22. Nc4 {[%clk 00:07:57]} {[%emt 00:00:16]} Be6 {[%clk 00:12:42]} {[%emt
00:00:08]} 23. Be3 {[%clk 00:07:01]} {[%emt 00:01:00]} Rad8 {[%clk 00:12:31]}
{[%emt 00:00:14]} 24. Nb6 {[%clk 00:06:29]} {[%emt 00:00:35]} Qc6 {[%clk
00:11:59]} {[%emt 00:00:35]} 25. Bg2 {[%clk 00:06:20]} {[%emt 00:00:11]} Nd7
{[%clk 00:11:44]} {[%emt 00:00:18]} 26. Nca4 {[%clk 00:06:10]} {[%emt
00:00:13]} Nxb6 {[%clk 00:11:15]} {[%emt 00:00:32]} 27. Nxb6 {[%clk 00:05:56]}
{[%emt 00:00:18]} Bf6 {[%clk 00:11:09]} {[%emt 00:00:08]} 28. f4 {[%clk
00:04:06]} {[%emt 00:01:53]} exf4 {[%clk 00:10:55]} {[%emt 00:00:18]} 29. gxf4
{[%clk 00:04:06]} {[%emt 00:00:03]} Bd4 {[%clk 00:10:48]} {[%emt 00:00:10]} 30.
Bd2 {[%clk 00:03:47]} {[%emt 00:00:21]} Bxb2 {[%clk 00:10:30]} {[%emt
00:00:21]} 31. Qxb2 {[%clk 00:03:40]} {[%emt 00:00:10]} Rxd2 {[%clk 00:10:31]}
{[%emt 00:00:02]} 32. Rac1 {[%clk 00:03:30]} {[%emt 00:00:13]} Red8 {[%clk
00:10:21]} {[%emt 00:00:13]} 33. Qc3 {[%clk 00:03:20]} {[%emt 00:00:11]} Na2
{[%clk 00:10:11]} {[%emt 00:00:14]} 34. Qe3 {[%clk 00:03:10]} {[%emt 00:00:14]}
Nxc1 {[%clk 00:10:06]} 35. Rxc1 {[%clk 00:03:13]} R8d4 {[%clk 00:10:02]} {[%emt
00:00:07]} 36. f5 {[%clk 00:02:58]} {[%emt 00:00:19]} Bxf5 {[%clk 00:09:53]}
{[%emt 00:00:12]} 37. Nd5 {[%clk 00:02:36]} {[%emt 00:00:24]} Qd6+ {[%clk
00:09:19]} {[%emt 00:00:36]} 38. Kh1 {[%clk 00:02:19]} {[%emt 00:00:21]} Bxe4
{[%clk 00:09:08]} {[%emt 00:00:14]} 39. Nf4 {[%clk 00:02:21]} {[%emt 00:00:01]}
Bxg2+ {[%clk 00:08:50]} {[%emt 00:00:21]} 40. Nxg2 {[%clk 00:02:22]} {[%emt
00:00:02]} Qc6 {[%clk 00:08:50]} {[%emt 00:00:02]} 41. Qg3 {[%clk 00:02:18]}
{[%emt 00:00:08]} Rd1+ {[%clk 00:08:33]} {[%emt 00:00:20]} 42. Rxd1 {[%clk
00:02:19]} {[%emt 00:00:02]} Rxd1+ {[%clk 00:08:35]} {[%emt 00:00:01]} 43. Kh2
{[%clk 00:02:21]} Qd6 {[%clk 00:08:29]} {[%emt 00:00:09]} 44. Nf4 {[%clk
00:02:18]} {[%emt 00:00:07]} Rd4 {[%clk 00:08:24]} {[%emt 00:00:06]} 45. Nd3
{[%clk 00:02:06]} {[%emt 00:00:16]} Qxg3+ {[%clk 00:08:17]} {[%emt 00:00:10]}
46. Kxg3 {[%clk 00:02:09]} Rc4 {[%clk 00:08:13]} {[%emt 00:00:07]} 47. Ne1
{[%clk 00:02:09]} {[%emt 00:00:04]} Ra4 {[%clk 00:08:07]} {[%emt 00:00:09]} 0-1